[Event "Titled Tuesday Blitz January 17 Early 2023"]
[White "Melikhov, Evgeny V."]
[Black "Osmak, Yuliia"]
[WhiteFideId "4122046"]
[BlackFideId "14101602"]
[WhiteElo "2269"]
[BlackElo "2440"]
[Result "0-1"]
[Round "07"]
[TimeControl "180+2"]
[Date "2023.01.17"]
[WhiteClock "0:00:07"]
[BlackClock "0:00:11"]

1. d4 {[%clk 0:02:57]}  d6 {[%clk 0:02:48]} 2. e4 {[%clk 0:02:56]}  Nf6 {[%clk 0:02:48]} 3. Bd3 {[%clk 0:02:56]}  e5 {[%clk 0:02:47]} 4. d5 {[%clk 0:02:56]}  Be7 {[%clk 0:02:45]} 5. c4 {[%clk 0:02:54]}  O-O {[%clk 0:02:44]} 6. Nc3 {[%clk 0:02:54]}  c6 {[%clk 0:02:44]} 7. h3 {[%clk 0:02:49]}  Na6 {[%clk 0:02:43]} 8. Nf3 {[%clk 0:02:43]}  Nc5 {[%clk 0:02:40]} 9. Bc2 {[%clk 0:02:42]}  a5 {[%clk 0:02:39]} 10. O-O {[%clk 0:02:38]}  Bd7 {[%clk 0:02:24]} 11. Be3 {[%clk 0:02:34]}  cxd5 {[%clk 0:02:21]} 12. cxd5 {[%clk 0:02:34]}  Rc8 {[%clk 0:02:19]} 13. a3 {[%clk 0:02:01]}  b5 {[%clk 0:02:12]} 14. b4 {[%clk 0:01:59]}  Nb3 {[%clk 0:02:03]} 15. Bxb3 {[%clk 0:01:56]}  Rxc3 {[%clk 0:02:02]} 16. Rc1 {[%clk 0:01:52]}  Nxe4 {[%clk 0:01:57]} 17. Rxc3 {[%clk 0:01:50]}  Nxc3 {[%clk 0:01:58]} 18. Qc2 {[%clk 0:01:43]}  axb4 {[%clk 0:01:56]} 19. axb4 {[%clk 0:01:43]}  Na4 {[%clk 0:01:53]} 20. Rc1 {[%clk 0:01:37]}  Qc8 {[%clk 0:01:29]} 21. Qc7 {[%clk 0:01:30]}  Qxc7 {[%clk 0:01:14]} 22. Rxc7 {[%clk 0:01:29]}  Rd8 {[%clk 0:01:15]} 23. Bg5 {[%clk 0:01:22]}  Bxg5 {[%clk 0:01:03]} 24. Nxg5 {[%clk 0:01:21]}  Be8 {[%clk 0:01:04]} 25. Ne4 {[%clk 0:00:58]}  Nb2 {[%clk 0:00:58]} 26. Rb7 {[%clk 0:00:42]}  f5 {[%clk 0:00:47]} 27. Ng5 {[%clk 0:00:36]}  Nd3 {[%clk 0:00:29]} 28. Ne6 {[%clk 0:00:30]}  Rd7 {[%clk 0:00:28]} 29. Rxb5 {[%clk 0:00:26]}  Ra7 {[%clk 0:00:21]} 30. Rb8 {[%clk 0:00:23]}  Kf7 {[%clk 0:00:20]} 31. g4 {[%clk 0:00:17]}  Ra1+ {[%clk 0:00:17]} 32. Kg2 {[%clk 0:00:17]}  fxg4 {[%clk 0:00:17]} 33. hxg4 {[%clk 0:00:16]}  Rb1 {[%clk 0:00:14]} 34. Bc2 {[%clk 0:00:16]}  Ne1+ {[%clk 0:00:14]} 35. Kg3 {[%clk 0:00:15]}  Nxc2 {[%clk 0:00:15]} 36. b5 {[%clk 0:00:14]}  Rb3+ {[%clk 0:00:14]} 37. f3 {[%clk 0:00:14]}  Rxb5 {[%clk 0:00:14]} 38. Rc8 {[%clk 0:00:10]}  Nd4 {[%clk 0:00:14]} 39. Rc7+ {[%clk 0:00:10]}  Kf6 {[%clk 0:00:12]} 40. Nxg7 {[%clk 0:00:10]}  Bf7 {[%clk 0:00:12]} 41. g5+ {[%clk 0:00:07]}  Kg6 {[%clk 0:00:11]} 42. Ne6 {[%clk 0:00:06]}  Bxe6 {[%clk 0:00:11]} 43. dxe6 {[%clk 0:00:07]}  Nxe6 {[%clk 0:00:11]} 44. Re7 {[%clk 0:00:07]}  Nxg5 {[%clk 0:00:11]} 45. Rd7 {[%clk 0:00:07]}  d5 {[%clk 0:00:11]} 46. Rd6+ {[%clk 0:00:07]}  Kf5 {[%clk 0:00:11]} 0-1


[Site "https://www.chess.com"]

[Event "Titled Tuesday Blitz January 17 Early 2023"]
[White "TacticalSam94"]
[Black "Vovk, Orest"]
[BlackFideId "14113490"]
[WhiteElo "2382"]
[BlackElo "2315"]
[Result "1-0"]
[Round "07"]
[TimeControl "180+2"]
[Date "2023.01.17"]
[WhiteClock "0:00:13"]
[BlackClock "0:00:03"]

1. e4 {[%clk 0:03:00]}  g5 {[%clk 0:02:48]} 2. d4 {[%clk 0:02:58]}  g4 {[%clk 0:02:47]} 3. Qxg4 {[%clk 0:02:56]}  d5 {[%clk 0:02:47]} 4. Qd1 {[%clk 0:02:51]}  dxe4 {[%clk 0:02:47]} 5. Nc3 {[%clk 0:02:52]}  Nf6 {[%clk 0:02:47]} 6. Bg5 {[%clk 0:02:52]}  Nbd7 {[%clk 0:02:42]} 7. g3 {[%clk 0:02:51]}  h6 {[%clk 0:02:39]} 8. Bf4 {[%clk 0:02:49]}  c6 {[%clk 0:02:36]} 9. Bg2 {[%clk 0:02:49]}  Qb6 {[%clk 0:02:28]} 10. Rb1 {[%clk 0:02:49]}  Bg7 {[%clk 0:02:28]} 11. Nge2 {[%clk 0:02:49]}  Nd5 {[%clk 0:02:21]} 12. Nxe4 {[%clk 0:02:32]}  Nxf4 {[%clk 0:02:02]} 13. Nxf4 {[%clk 0:02:32]}  Qxd4 {[%clk 0:01:59]} 14. Qe2 {[%clk 0:02:26]}  Ne5 {[%clk 0:01:43]} 15. Nh5 {[%clk 0:02:13]}  O-O {[%clk 0:01:27]} 16. Nxg7 {[%clk 0:02:12]}  Kxg7 {[%clk 0:01:27]} 17. O-O {[%clk 0:02:05]}  Bg4 {[%clk 0:01:26]} 18. Qe3 {[%clk 0:01:20]}  Qxe3 {[%clk 0:01:17]} 19. fxe3 {[%clk 0:01:21]}  Rad8 {[%clk 0:01:08]} 20. h3 {[%clk 0:01:20]}  Bh5 {[%clk 0:01:05]} 21. b3 {[%clk 0:01:20]}  Bg6 {[%clk 0:01:03]} 22. Rbd1 {[%clk 0:01:16]}  Bxe4 {[%clk 0:01:03]} 23. Bxe4 {[%clk 0:01:15]}  Rd6 {[%clk 0:01:03]} 24. Rd4 {[%clk 0:01:10]}  Rfd8 {[%clk 0:01:01]} 25. Rfd1 {[%clk 0:01:09]}  a5 {[%clk 0:00:36]} 26. Kf2 {[%clk 0:01:08]}  b6 {[%clk 0:00:35]} 27. g4 {[%clk 0:00:57]}  c5 {[%clk 0:00:34]} 28. Rd5 {[%clk 0:00:42]}  Rxd5 {[%clk 0:00:32]} 29. Rxd5 {[%clk 0:00:41]}  Rxd5 {[%clk 0:00:32]} 30. Bxd5 {[%clk 0:00:42]}  e6 {[%clk 0:00:33]} 31. Be4 {[%clk 0:00:41]}  Kf6 {[%clk 0:00:33]} 32. Kg3 {[%clk 0:00:40]}  Ke7 {[%clk 0:00:26]} 33. Kf4 {[%clk 0:00:39]}  f6 {[%clk 0:00:26]} 34. h4 {[%clk 0:00:36]}  Nf7 {[%clk 0:00:26]} 35. Bg6 {[%clk 0:00:33]}  Nd6 {[%clk 0:00:26]} 36. Bd3 {[%clk 0:00:33]}  e5+ {[%clk 0:00:25]} 37. Kf3 {[%clk 0:00:28]}  Ke6 {[%clk 0:00:26]} 38. Bh7 {[%clk 0:00:25]}  Kd5 {[%clk 0:00:22]} 39. Bg8+ {[%clk 0:00:24]}  Kc6 {[%clk 0:00:22]} 40. a4 {[%clk 0:00:23]}  b5 {[%clk 0:00:20]} 41. axb5+ {[%clk 0:00:21]}  Kxb5 {[%clk 0:00:20]} 42. g5 {[%clk 0:00:20]}  fxg5 {[%clk 0:00:18]} 43. hxg5 {[%clk 0:00:21]}  hxg5 {[%clk 0:00:18]} 44. Kg4 {[%clk 0:00:22]}  c4 {[%clk 0:00:12]} 45. Kxg5 {[%clk 0:00:21]}  c3 {[%clk 0:00:11]} 46. Kf6 {[%clk 0:00:21]}  e4 {[%clk 0:00:10]} 47. Ke5 {[%clk 0:00:20]}  Kc5 {[%clk 0:00:10]} 48. Bd5 {[%clk 0:00:19]}  Nb5 {[%clk 0:00:07]} 49. Bxe4 {[%clk 0:00:19]}  Kb4 {[%clk 0:00:07]} 50. Bd3 {[%clk 0:00:15]}  Na7 {[%clk 0:00:04]} 51. Kd6 {[%clk 0:00:15]}  Nc8+ {[%clk 0:00:04]} 52. Kd7 {[%clk 0:00:13]}  Nb6+ {[%clk 0:00:03]} 53. Kc6 {[%clk 0:00:14]}  Nc8 {[%clk 0:00:03]} 54. e4 {[%clk 0:00:13]} 1-0


[Site "https://www.chess.com"]

[Event "Titled Tuesday Blitz January 17 Early 2023"]
[White "Balabayeva, Xeniya"]
[Black "Petrova, Irina"]
[WhiteFideId "13719688"]
[BlackFideId "14124122"]
[WhiteElo "2191"]
[BlackElo "2108"]
[Result "1-0"]
[Round "07"]
[TimeControl "180+2"]
[Date "2023.01.17"]
[WhiteClock "0:00:09"]
[BlackClock "0:00:10"]

1. d4 {[%clk 0:03:00]}  d6 {[%clk 0:02:58]} 2. c4 {[%clk 0:02:59]}  e5 {[%clk 0:02:58]} 3. d5 {[%clk 0:02:53]}  a5 {[%clk 0:02:56]} 4. Nc3 {[%clk 0:02:52]}  Be7 {[%clk 0:02:55]} 5. e4 {[%clk 0:02:52]}  Na6 {[%clk 0:02:55]} 6. Be3 {[%clk 0:02:46]}  Nf6 {[%clk 0:02:52]} 7. f3 {[%clk 0:02:36]}  O-O {[%clk 0:02:49]} 8. Nge2 {[%clk 0:02:28]}  h6 {[%clk 0:02:48]} 9. Qd2 {[%clk 0:02:20]}  Nh7 {[%clk 0:02:48]} 10. g4 {[%clk 0:02:11]}  Bg5 {[%clk 0:02:46]} 11. Bxg5 {[%clk 0:02:01]}  Qxg5 {[%clk 0:02:45]} 12. h4 {[%clk 0:01:55]}  Qxd2+ {[%clk 0:02:42]} 13. Kxd2 {[%clk 0:01:55]}  Nc5 {[%clk 0:02:43]} 14. Ke3 {[%clk 0:01:53]}  Bd7 {[%clk 0:02:41]} 15. Ng3 {[%clk 0:01:47]}  g6 {[%clk 0:02:40]} 16. Bh3 {[%clk 0:01:44]}  Kg7 {[%clk 0:02:17]} 17. Rag1 {[%clk 0:01:38]}  Kf6 {[%clk 0:02:02]} 18. Rg2 {[%clk 0:00:59]}  Ke7 {[%clk 0:02:01]} 19. Rhg1 {[%clk 0:00:57]}  g5 {[%clk 0:01:57]} 20. hxg5 {[%clk 0:00:55]}  hxg5 {[%clk 0:01:55]} 21. Nf5+ {[%clk 0:00:53]}  Bxf5 {[%clk 0:01:54]} 22. gxf5 {[%clk 0:00:53]}  f6 {[%clk 0:01:54]} 23. Bg4 {[%clk 0:00:52]}  Rf7 {[%clk 0:01:43]} 24. Rh2 {[%clk 0:00:52]}  Nf8 {[%clk 0:01:43]} 25. Rgh1 {[%clk 0:00:50]}  Nfd7 {[%clk 0:01:42]} 26. Nb5 {[%clk 0:00:45]}  c6 {[%clk 0:01:35]} 27. Nc7 {[%clk 0:00:44]}  Rg8 {[%clk 0:01:25]} 28. Ne6 {[%clk 0:00:43]}  cxd5 {[%clk 0:01:20]} 29. exd5 {[%clk 0:00:33]}  Nb6 {[%clk 0:01:17]} 30. Rc1 {[%clk 0:00:19]}  Rc8 {[%clk 0:00:39]} 31. b3 {[%clk 0:00:18]}  Nxe6 {[%clk 0:00:21]} 32. fxe6 {[%clk 0:00:15]}  Rg7 {[%clk 0:00:21]} 33. Rch1 {[%clk 0:00:14]}  Nd7 {[%clk 0:00:19]} 34. exd7 {[%clk 0:00:13]}  Rcg8 {[%clk 0:00:18]} 35. Be6 {[%clk 0:00:13]}  Rf8 {[%clk 0:00:16]} 36. Rh7 {[%clk 0:00:13]}  Rxh7 {[%clk 0:00:16]} 37. Rxh7+ {[%clk 0:00:13]}  Kd8 {[%clk 0:00:17]} 38. Ke4 {[%clk 0:00:13]}  b6 {[%clk 0:00:16]} 39. Kf5 {[%clk 0:00:13]}  Kc7 {[%clk 0:00:17]} 40. d8=Q+ {[%clk 0:00:11]}  Kxd8 {[%clk 0:00:16]} 41. Ra7 {[%clk 0:00:11]}  Ke8 {[%clk 0:00:10]} 42. Rb7 {[%clk 0:00:09]} 1-0


[Site "https://www.chess.com"]

[Event "Titled Tuesday Blitz January 17 Early 2023"]
[White "Reprintsev, Alexander"]
[Black "Vasques, Antonio Pedro Freixial"]
[WhiteFideId "14100541"]
[BlackFideId "1908332"]
[WhiteElo "2253"]
[BlackElo "2214"]
[Result "1-0"]
[Round "07"]
[TimeControl "180+2"]
[Date "2023.01.17"]
[WhiteClock "0:01:38"]
[BlackClock "0:00:23"]

1. e4 {[%clk 0:02:59]}  c5 {[%clk 0:02:58]} 2. b3 {[%clk 0:02:59]}  e5 {[%clk 0:02:57]} 3. Bb2 {[%clk 0:02:58]}  d6 {[%clk 0:02:57]} 4. f4 {[%clk 0:02:58]}  exf4 {[%clk 0:02:50]} 5. Qf3 {[%clk 0:02:58]}  Qh4+ {[%clk 0:02:46]} 6. g3 {[%clk 0:02:57]}  fxg3 {[%clk 0:02:42]} 7. hxg3 {[%clk 0:02:58]}  Qg4 {[%clk 0:02:42]} 8. Qe3 {[%clk 0:02:58]}  Nc6 {[%clk 0:02:40]} 9. Bh3 {[%clk 0:02:58]}  Qg6 {[%clk 0:02:39]} 10. Bf5 {[%clk 0:02:58]}  Nd4 {[%clk 0:02:30]} 11. Na3 {[%clk 0:02:55]}  Qf6 {[%clk 0:02:25]} 12. O-O-O {[%clk 0:02:46]}  Be6 {[%clk 0:02:07]} 13. Nf3 {[%clk 0:02:37]}  Nxf5 {[%clk 0:02:02]} 14. exf5 {[%clk 0:02:36]}  Qxf5 {[%clk 0:02:03]} 15. Ng5 {[%clk 0:02:27]}  O-O-O {[%clk 0:01:57]} 16. Rdf1 {[%clk 0:02:26]}  Qg4 {[%clk 0:01:56]} 17. Rh4 {[%clk 0:02:21]}  Nf6 {[%clk 0:01:10]} 18. Rxg4 {[%clk 0:02:17]}  Nxg4 {[%clk 0:01:11]} 19. Qe4 {[%clk 0:02:09]}  d5 {[%clk 0:01:09]} 20. Qe2 {[%clk 0:02:06]}  Nf6 {[%clk 0:00:49]} 21. Nxe6 {[%clk 0:02:05]}  fxe6 {[%clk 0:00:50]} 22. Qxe6+ {[%clk 0:02:05]}  Kb8 {[%clk 0:00:51]} 23. Rxf6 {[%clk 0:02:00]}  gxf6 {[%clk 0:00:50]} 24. Bxf6 {[%clk 0:02:01]}  c4 {[%clk 0:00:49]} 25. Nb5 {[%clk 0:01:52]}  Ba3+ {[%clk 0:00:26]} 26. Nxa3 {[%clk 0:01:51]}  Rhe8 {[%clk 0:00:27]} 27. Be7 {[%clk 0:01:40]}  Rc8 {[%clk 0:00:23]} 28. Nb5 {[%clk 0:01:38]} 1-0


[Site "https://www.chess.com"]

[Event "Titled Tuesday Blitz January 17 Early 2023"]
[White "Bettalli, Francesco"]
[Black "Abdilkhair, Abilmansur"]
[WhiteFideId "2816453"]
[BlackFideId "13716417"]
[WhiteElo "2252"]
[BlackElo "2268"]
[Result "1-0"]
[Round "07"]
[TimeControl "180+2"]
[Date "2023.01.17"]
[WhiteClock "0:00:57"]
[BlackClock "0:00:06"]

1. d4 {[%clk 0:02:56]}  e6 {[%clk 0:02:59]} 2. Nc3 {[%clk 0:02:57]}  d5 {[%clk 0:02:55]} 3. Nf3 {[%clk 0:02:50]}  Nf6 {[%clk 0:02:55]} 4. Bg5 {[%clk 0:02:49]}  Bb4 {[%clk 0:02:55]} 5. e3 {[%clk 0:02:46]}  O-O {[%clk 0:02:52]} 6. Bd3 {[%clk 0:02:42]}  c5 {[%clk 0:02:52]} 7. dxc5 {[%clk 0:02:41]}  Nbd7 {[%clk 0:02:51]} 8. c6 {[%clk 0:02:39]}  bxc6 {[%clk 0:02:50]} 9. O-O {[%clk 0:02:38]}  h6 {[%clk 0:02:50]} 10. Bh4 {[%clk 0:02:27]}  Rb8 {[%clk 0:02:44]} 11. e4 {[%clk 0:02:25]}  Be7 {[%clk 0:02:34]} 12. e5 {[%clk 0:02:24]}  Ne8 {[%clk 0:02:14]} 13. Bg3 {[%clk 0:02:20]}  Rxb2 {[%clk 0:02:05]} 14. Nd4 {[%clk 0:02:13]}  Bb7 {[%clk 0:01:52]} 15. Na4 {[%clk 0:02:11]}  Rb4 {[%clk 0:01:37]} 16. c3 {[%clk 0:02:11]}  Rxa4 {[%clk 0:01:30]} 17. Qxa4 {[%clk 0:02:12]}  Nc5 {[%clk 0:01:30]} 18. Qc2 {[%clk 0:02:11]}  Nxd3 {[%clk 0:01:28]} 19. Qxd3 {[%clk 0:02:11]}  c5 {[%clk 0:01:29]} 20. Nf3 {[%clk 0:02:10]}  Nc7 {[%clk 0:01:29]} 21. Rfd1 {[%clk 0:02:07]}  Qd7 {[%clk 0:01:22]} 22. Rab1 {[%clk 0:02:05]}  Ba6 {[%clk 0:01:20]} 23. Qe3 {[%clk 0:02:05]}  Qa4 {[%clk 0:01:18]} 24. Rd2 {[%clk 0:02:02]}  Nb5 {[%clk 0:01:10]} 25. h4 {[%clk 0:02:00]}  Na3 {[%clk 0:01:10]} 26. Rb3 {[%clk 0:01:53]}  Nc4 {[%clk 0:01:09]} 27. Qe1 {[%clk 0:01:53]}  Nxd2 {[%clk 0:01:07]} 28. Qxd2 {[%clk 0:01:54]}  Bc4 {[%clk 0:01:03]} 29. Rb2 {[%clk 0:01:53]}  Rd8 {[%clk 0:00:53]} 30. Bf4 {[%clk 0:01:51]}  Bf8 {[%clk 0:00:52]} 31. Be3 {[%clk 0:01:51]}  Qa6 {[%clk 0:00:45]} 32. Qc1 {[%clk 0:01:47]}  Bd3 {[%clk 0:00:37]} 33. Ne1 {[%clk 0:01:45]}  Be4 {[%clk 0:00:35]} 34. f3 {[%clk 0:01:44]}  Bg6 {[%clk 0:00:33]} 35. g4 {[%clk 0:01:43]}  d4 {[%clk 0:00:33]} 36. cxd4 {[%clk 0:01:43]}  cxd4 {[%clk 0:00:34]} 37. Bf2 {[%clk 0:01:44]}  Ba3 {[%clk 0:00:28]} 38. Bxd4 {[%clk 0:01:28]}  Bxb2 {[%clk 0:00:23]} 39. Qxb2 {[%clk 0:01:29]}  Qc6 {[%clk 0:00:17]} 40. h5 {[%clk 0:01:27]}  Bh7 {[%clk 0:00:16]} 41. Bxa7 {[%clk 0:01:22]}  Qc4 {[%clk 0:00:11]} 42. Bf2 {[%clk 0:01:20]}  Qd5 {[%clk 0:00:11]} 43. a4 {[%clk 0:01:18]}  Ra8 {[%clk 0:00:10]} 44. Qb4 {[%clk 0:01:13]}  Bd3 {[%clk 0:00:10]} 45. Bb6 {[%clk 0:01:10]}  Bc2 {[%clk 0:00:09]} 46. Nxc2 {[%clk 0:01:09]}  Qxf3 {[%clk 0:00:07]} 47. Ne1 {[%clk 0:01:06]}  Qg3+ {[%clk 0:00:06]} 48. Ng2 {[%clk 0:01:06]}  Rc8 {[%clk 0:00:06]} 49. Bf2 {[%clk 0:01:00]}  Qxg4 {[%clk 0:00:05]} 50. Qxg4 {[%clk 0:01:00]}  Rc1+ {[%clk 0:00:06]} 51. Kh2 {[%clk 0:00:59]}  Rc2 {[%clk 0:00:06]} 52. Qd4 {[%clk 0:00:57]} 1-0


[Site "https://www.chess.com"]

[Event "Titled Tuesday Blitz January 17 Early 2023"]
[White "Sohier, Julien"]
[Black "Vagman, Roy"]
[WhiteFideId "645346"]
[BlackFideId "2828995"]
[WhiteElo "2214"]
[BlackElo "2273"]
[Result "1-0"]
[Round "07"]
[TimeControl "180+2"]
[Date "2023.01.17"]
[WhiteClock "0:00:34"]
[BlackClock "0:00:03"]

1. e4 {[%clk 0:03:00]}  c5 {[%clk 0:02:59]} 2. Nc3 {[%clk 0:03:00]}  Nc6 {[%clk 0:02:59]} 3. Bb5 {[%clk 0:03:00]}  g6 {[%clk 0:02:58]} 4. Bxc6 {[%clk 0:02:59]}  dxc6 {[%clk 0:02:59]} 5. f4 {[%clk 0:03:00]}  Bg7 {[%clk 0:03:00]} 6. d3 {[%clk 0:03:00]}  Nh6 {[%clk 0:02:49]} 7. Nf3 {[%clk 0:02:59]}  O-O {[%clk 0:02:40]} 8. O-O {[%clk 0:02:58]}  f5 {[%clk 0:02:37]} 9. e5 {[%clk 0:02:57]}  Nf7 {[%clk 0:02:35]} 10. Be3 {[%clk 0:02:52]}  b6 {[%clk 0:02:35]} 11. a4 {[%clk 0:02:52]}  a5 {[%clk 0:02:27]} 12. Qe1 {[%clk 0:02:46]}  Be6 {[%clk 0:02:22]} 13. b3 {[%clk 0:02:45]}  Qc7 {[%clk 0:02:04]} 14. Qf2 {[%clk 0:02:42]}  Rad8 {[%clk 0:02:03]} 15. Nd2 {[%clk 0:02:39]}  Nxe5 {[%clk 0:01:59]} 16. fxe5 {[%clk 0:02:29]}  Bxe5 {[%clk 0:01:53]} 17. Bf4 {[%clk 0:02:28]}  Bxf4 {[%clk 0:01:44]} 18. Qxf4 {[%clk 0:02:27]}  Qxf4 {[%clk 0:01:45]} 19. Rxf4 {[%clk 0:02:27]}  Bd5 {[%clk 0:01:44]} 20. Nxd5 {[%clk 0:02:22]}  cxd5 {[%clk 0:01:44]} 21. Nf3 {[%clk 0:02:21]}  Rfe8 {[%clk 0:01:42]} 22. Re1 {[%clk 0:02:20]}  Rd6 {[%clk 0:01:35]} 23. Ne5 {[%clk 0:02:11]}  Kg7 {[%clk 0:01:33]} 24. Rf2 {[%clk 0:02:09]}  Re6 {[%clk 0:01:27]} 25. Rfe2 {[%clk 0:02:09]}  h6 {[%clk 0:01:18]} 26. Nd7 {[%clk 0:01:59]}  Rxe2 {[%clk 0:01:17]} 27. Rxe2 {[%clk 0:02:00]}  e6 {[%clk 0:01:07]} 28. Nxb6 {[%clk 0:01:51]}  Kf7 {[%clk 0:01:06]} 29. Nd7 {[%clk 0:01:50]}  Rc8 {[%clk 0:00:50]} 30. Ne5+ {[%clk 0:01:47]}  Kf6 {[%clk 0:00:47]} 31. Kf2 {[%clk 0:01:43]}  Rc7 {[%clk 0:00:47]} 32. g3 {[%clk 0:01:43]}  g5 {[%clk 0:00:47]} 33. g4 {[%clk 0:01:27]}  h5 {[%clk 0:00:42]} 34. gxh5 {[%clk 0:01:20]}  Rh7 {[%clk 0:00:41]} 35. Kg3 {[%clk 0:01:15]}  Ke7 {[%clk 0:00:26]} 36. Nc6+ {[%clk 0:01:08]}  Kd6 {[%clk 0:00:26]} 37. Nxa5 {[%clk 0:01:07]}  Rxh5 {[%clk 0:00:15]} 38. Nb7+ {[%clk 0:01:03]}  Kc6 {[%clk 0:00:15]} 39. Nd8+ {[%clk 0:01:02]}  Kd6 {[%clk 0:00:15]} 40. Nxe6 {[%clk 0:00:58]}  d4 {[%clk 0:00:09]} 41. Ng7 {[%clk 0:00:55]}  f4+ {[%clk 0:00:10]} 42. Kg4 {[%clk 0:00:53]}  Rh7 {[%clk 0:00:10]} 43. Nf5+ {[%clk 0:00:52]}  Kc6 {[%clk 0:00:10]} 44. Kxg5 {[%clk 0:00:52]}  f3 {[%clk 0:00:10]} 45. Rf2 {[%clk 0:00:52]}  Kb6 {[%clk 0:00:09]} 46. h4 {[%clk 0:00:51]}  Ka5 {[%clk 0:00:09]} 47. h5 {[%clk 0:00:51]}  Kb4 {[%clk 0:00:10]} 48. h6 {[%clk 0:00:51]}  Kc3 {[%clk 0:00:10]} 49. Kg6 {[%clk 0:00:51]}  Rh8 {[%clk 0:00:09]} 50. h7 {[%clk 0:00:51]}  c4 {[%clk 0:00:09]} 51. bxc4 {[%clk 0:00:51]}  Ra8 {[%clk 0:00:08]} 52. Kf7 {[%clk 0:00:49]}  Ra5 {[%clk 0:00:03]} 53. Rxf3 {[%clk 0:00:45]}  Kxc2 {[%clk 0:00:01]} 54. Nxd4+ {[%clk 0:00:44]}  Kc3 {[%clk 0:00:01]} 55. Nb5+ {[%clk 0:00:43]}  Kb4 {[%clk 0:00:01]} 56. h8=Q {[%clk 0:00:43]}  Kxa4 {[%clk 0:00:02]} 57. Qa1+ {[%clk 0:00:41]}  Kb4 {[%clk 0:00:02]} 58. Qxa5+ {[%clk 0:00:41]}  Kc5 {[%clk 0:00:01]} 59. Qc7+ {[%clk 0:00:39]}  Kb4 {[%clk 0:00:01]} 60. Nd6 {[%clk 0:00:38]}  Ka4 {[%clk 0:00:02]} 61. Qb7 {[%clk 0:00:36]}  Ka3 {[%clk 0:00:02]} 62. Rf5 {[%clk 0:00:35]}  Ka2 {[%clk 0:00:03]} 63. Ra5# {[%clk 0:00:34]} 1-0


[Site "https://www.chess.com"]

[Event "Titled Tuesday Blitz January 17 Early 2023"]
[White "Tymrakiewicz, Rafal"]
[Black "Bas Mas, Jose Joaquin"]
[WhiteFideId "1108832"]
[BlackFideId "22219064"]
[WhiteElo "2144"]
[BlackElo "2197"]
[Result "1-0"]
[Round "07"]
[TimeControl "180+2"]
[Date "2023.01.17"]
[WhiteClock "0:00:11"]
[BlackClock "0:00:26"]

1. e4 {[%clk 0:03:00]}  Nf6 {[%clk 0:03:00]} 2. e5 {[%clk 0:02:52]}  Nd5 {[%clk 0:02:59]} 3. d4 {[%clk 0:02:53]}  d6 {[%clk 0:03:00]} 4. Nf3 {[%clk 0:02:53]}  dxe5 {[%clk 0:03:00]} 5. dxe5 {[%clk 0:02:53]}  Bf5 {[%clk 0:02:58]} 6. Bd3 {[%clk 0:02:52]}  Bxd3 {[%clk 0:02:55]} 7. Qxd3 {[%clk 0:02:53]}  Nc6 {[%clk 0:02:55]} 8. O-O {[%clk 0:02:52]}  e6 {[%clk 0:02:55]} 9. a3 {[%clk 0:02:52]}  Be7 {[%clk 0:02:55]} 10. b4 {[%clk 0:02:51]}  a6 {[%clk 0:02:53]} 11. Bb2 {[%clk 0:02:40]}  O-O {[%clk 0:02:53]} 12. c4 {[%clk 0:02:33]}  Nb6 {[%clk 0:02:52]} 13. Qe4 {[%clk 0:02:33]}  Na4 {[%clk 0:02:43]} 14. Ra2 {[%clk 0:02:28]}  a5 {[%clk 0:02:33]} 15. b5 {[%clk 0:02:23]}  Na7 {[%clk 0:02:32]} 16. Bd4 {[%clk 0:02:13]}  Nc8 {[%clk 0:02:29]} 17. Rd2 {[%clk 0:02:09]}  Rb8 {[%clk 0:01:43]} 18. Rfd1 {[%clk 0:01:59]}  Qe8 {[%clk 0:01:40]} 19. Nc3 {[%clk 0:01:53]}  Ncb6 {[%clk 0:01:23]} 20. Nxa4 {[%clk 0:01:35]}  Nxa4 {[%clk 0:01:23]} 21. Qe3 {[%clk 0:01:25]}  b6 {[%clk 0:01:20]} 22. Ng5 {[%clk 0:01:15]}  Bxg5 {[%clk 0:01:12]} 23. Qxg5 {[%clk 0:01:15]}  h6 {[%clk 0:01:12]} 24. Qg4 {[%clk 0:01:04]}  Qe7 {[%clk 0:01:11]} 25. Be3 {[%clk 0:00:59]}  Kh8 {[%clk 0:01:09]} 26. Rd7 {[%clk 0:00:46]}  Qxa3 {[%clk 0:01:07]} 27. Bxh6 {[%clk 0:00:39]}  gxh6 {[%clk 0:01:00]} 28. Qf4 {[%clk 0:00:40]}  Kg7 {[%clk 0:00:29]} 29. Qf6+ {[%clk 0:00:39]}  Kh7 {[%clk 0:00:29]} 30. Rxf7+ {[%clk 0:00:16]}  Rxf7 {[%clk 0:00:30]} 31. Qxf7+ {[%clk 0:00:16]}  Kh8 {[%clk 0:00:30]} 32. Qf6+ {[%clk 0:00:16]}  Kg8 {[%clk 0:00:30]} 33. Qxe6+ {[%clk 0:00:16]}  Kh8 {[%clk 0:00:30]} 34. Qxh6+ {[%clk 0:00:16]}  Kg8 {[%clk 0:00:31]} 35. Qg6+ {[%clk 0:00:16]}  Kh8 {[%clk 0:00:31]} 36. h4 {[%clk 0:00:14]}  Qb2 {[%clk 0:00:27]} 37. Qf6+ {[%clk 0:00:11]}  Kg8 {[%clk 0:00:26]} 38. Rd7 {[%clk 0:00:11]} 1-0


[Site "https://www.chess.com"]